{"text_format":"1","workbook":"xlsx","n_sheets":2,"sheets":["Angles","Harder_Angles"],"not_rendered":{"charts":0,"images":0,"macros":1,"external_links":0,"defined_names":0,"comments":0,"pivot_tables":0},"unopened":[],"bounds":{"document_bytes":16777216,"sheet_cells":100000,"rows_first":2000,"rows_last":500,"rows_between":2000,"halvings":0,"cell_chars":16384,"cell_head_chars":4096},"cells_cut":0,"cells_raw":0,"read":"whole","date_system":"1900"}

{"sheet":"Angles","index":0,"n_rows":76,"n_cols":13,"rows_kept":76,"cut":false,"hidden":false,"merged":[[70,6,70,11],[62,6,62,11],[55,6,55,11],[5,11,6,11],[8,11,9,11],[13,11,14,11],[16,11,17,11],[19,11,21,11],[29,11,30,11],[15,6,15,11],[48,6,48,11],[2,6,3,11],[4,6,4,11],[28,6,28,11],[34,6,34,11],[40,6,40,11],[10,6,10,11],[22,6,22,11]]}
[]
[]
[null,null,null,null,null,null,"Level 3 Maths - Angles                                                                                                                                                                   Created by Mr.Lafferty@mathsrevision.com   "]
[]
[null,null,null,null,null,null,"Find all the missing angles below"]
[null,null,null,null,null,null,"Q1."]
[]
[null,null,null,null,null,null,null,null,"xo",null,"xo=",null,{"$f":"90-I9","v":48}]
[null,null,null,null,null,null,null,null,{"$f":"ROUND(RAND()*(50-39)+39,0)","v":42}]
[]
[]
[null,null,null,null,null,null,"Q2."]
[null,null,null,null,null,null,null,null,null,null,"ao=",null,{"$f":"180-I14","v":137}]
[null,null,null,null,null,null,null,"ao",{"$f":"ROUND(RAND()*(50-39)+39,0)","v":43}]
[]
[]
[null,null,null,null,null,null,"Q3."]
[]
[null,null,null,null,null,null,null,null,{"$f":"ROUND(RAND()*(50-39)+39,0)","v":42},null,"yo=",null,{"$f":"180 - I19","v":138}]
[null,null,null,null,null,null,null,null,"yo"]
[]
[]
[]
[null,null,null,null,null,null,"Q4."]
[null,null,null,null,null,null,null,null,{"$f":"ROUND(RAND()*(160-119)+119,0)","v":148},null,"ao=",null,{"$f":"180 - I25","v":32}]
[null,null,null,null,null,null,null,"ao","co",null,"bo=",null,{"$f":"I25","v":148}]
[null,null,null,null,null,null,null,null,"bo",null,"co=",null,{"$f":"M25","v":32}]
[]
[]
[null,null,null,null,null,null,"Q5."]
[null,null,null,null,null,null,null,null,{"$f":"ROUND(RAND()*(70-28)+28,0)","v":40}]
[null,null,null,null,null,null,null,null,null,null,"fo=",null,{"$f":"I31","v":40}]
[null,null,null,null,null,null,null,null,"fo"]
[]
[]
[null,null,null,null,null,null,"Q6."]
[null,null,null,null,null,null,null,null,{"$f":"ROUND(RAND()*(160-119)+119,0)","v":141},null,"ao=",null,{"$f":"I37","v":141}]
[null,null,null,null,null,null,null,null,"bo",null,"bo=",null,{"$f":"180 - I37","v":39}]
[null,null,null,null,null,null,null,"ao"]
[null,null,null,null,null,null,null,null,null,null,null,null,{"$f":"H40-J40","v":0}]
[]
[null,null,null,null,null,null,"Q7.",null,{"$f":"ROUND(RAND()*(160-119)+119,0)","v":119},"    bo","bo =",null,{"$f":"180 - I42","v":61}]
[null,null,null,null,null,null,null,null,"co","do","co =",null,{"$f":"M42","v":61}]
[null,null,null,null,null,null,null,null,null,null,"do =",null,{"$f":"I42","v":119}]
[null,null,null,null,null,null,null,null,"eo       fo",null,"eo =",null,{"$f":"M44","v":119}]
[null,null,null,null,null,null,null,null,"go      ho",null,"fo =",null,{"$f":"M43","v":61}]
[null,null,null,null,null,null,null,null,null,null,"go =",null,{"$f":"M46","v":61}]
[null,null,null,null,null,null,null,null,null,null,"ho =",null,{"$f":"M45","v":119}]
[]
[null,null,null,null,null,null,"Q8.",null,null,null,"ao =",null,{"$f":"180 - I54","v":123}]
[null,null,null,null,null,null,null,null,null,null,"bo =",null,{"$f":"M50","v":123}]
[null,null,null,null,null,null,null,null,"  do       eo",null,"co =",null,{"$f":"I54","v":57}]
[null,null,null,null,null,null,null,null,"co    bo",null,"do =",null,{"$f":"M50","v":123}]
[null,null,null,null,null,null,null,"ao",{"$f":"ROUND(RAND()*(80-40)+40,0)","v":57},null,"eo =",null,{"$f":"M52","v":57}]
[]
[]
[null,null,null,null,null,null,"Q9."]
[null,null,null,null,null,null,null,null,"co",null,"ao =",null,{"$f":"180 - H61","v":72}]
[null,null,null,null,null,null,null,null,null,null,"bo =",null,{"$f":"M58","v":72}]
[null,null,null,null,null,null,null,null,null,null,"co =",null,{"$f":"180 - (M58+M59)","v":36}]
[null,null,null,null,null,null,null,{"$f":"ROUND(RAND()*(120-100)+100,0)","v":108},"ao","bo"]
[]
[]
[null,null,null,null,null,null,"Q10.",{"$f":"ROUND(RAND()*(135-110)+110,0)","v":128},null,{"$f":"ROUND(RAND()*(125-100)+100,0)","v":113},"ao =",null,{"$f":"180 - H64","v":52}]
[null,null,null,null,null,null,null,"   ao",null,"bo","bo =",null,{"$f":"180 - J64","v":67}]
[null,null,null,null,null,null,null,"    co","do",null,"co =",null,{"$f":"H64","v":128}]
[null,null,null,null,null,null,null,"fo","eo",null,"do =",null,{"$f":"J64","v":113}]
[null,null,null,null,null,null,null,null,null,null,"eo =",null,{"$f":"M65","v":67}]
[null,null,null,null,null,null,null,null,"go",null,"fo =",null,{"$f":"M64","v":52}]
[null,null,null,null,null,null,null,null,null,null,"go =",null,{"$f":"180 - (M68+M69)","v":61}]
[]
[null,null,null,null,null,null,"Q11.",null,null,null,"ao =",null,{"$f":"I73","v":106}]
[null,null,null,null,null,null,null,"bo  ",{"$f":"ROUND(RAND()*(140-100)+100,0)","v":106},"eo","bo =",null,{"$f":"180 - M72","v":74}]
[null,null,null,null,null,null,null,null,null,null,"co =",null,{"$f":"M73","v":74}]
[null,null,null,null,null,null,null,"ao    co","do",{"$f":"ROUND(RAND()*(130-100)+100,0)","v":103},"do =",null,{"$f":"180 - J75","v":77}]
[null,null,null,null,null,null,null,null,null,null,"eo =",null,{"$f":"M75","v":77}]

{"sheet":"Harder_Angles","index":1,"n_rows":28,"n_cols":51,"rows_kept":28,"cut":false,"hidden":false,"merged":[[22,22,22,42],[23,22,24,23],[24,32,24,33],[24,40,24,41],[25,40,25,41],[18,37,18,38],[18,47,18,48],[15,32,15,33],[15,40,15,41],[16,40,16,41],[13,22,13,42],[5,24,6,34],[26,47,26,48],[26,50,26,52],[27,30,27,31],[27,37,27,38],[27,47,27,48],[9,37,9,38],[5,22,6,23],[6,40,6,41],[7,40,7,41],[8,50,8,52],[14,22,15,23],[17,47,17,48],[17,50,17,52],[18,30,18,31],[2,22,3,42],[4,22,4,42],[8,47,8,48],[9,47,9,48],[9,30,9,31]]}
[]
[]
[null,null,null,null,null,null,null,null,null,null,null,null,null,null,null,null,null,null,null,null,null,null,"Level 3 Maths - Angles                                                                                                                                                                   Created by Mr.Lafferty@mathsrevision.com   "]
[]
[null,null,null,null,null,null,null,null,null,null,null,null,null,null,null,null,null,null,null,null,null,null,"Find all the missing angles below"]
[null,null,null,null,null,null,null,null,null,null,null,null,null,null,null,null,null,null,null,null,null,null,"Q1.",null,"Find the value of x and y."]
[null,null,null,null,null,null,null,null,null,null,null,null,null,null,null,null,null,null,null,null,null,null,null,null,null,null,null,null,null,null,null,null,null,null,null,null,null,null,null,"x="]
[null,null,null,null,null,null,null,null,null,null,null,null,null,null,null,null,null,null,null,null,null,null,null,null,null,null,null,null,null,null,null,null,null,null,null,null,null,null,null,"y="]
[null,null,null,null,null,null,null,null,null,null,null,null,null,null,null,null,null,null,null,null,null,null,null,null,null,null,null,null,null,null,null,null,null,"yo",null,null,null,null,null,null,null,null,null,null,null,"x","=",{"$f":"ROUND(RAND()*(20-5)+5,0)","v":13},null,null,{"$f":"AB10*AV9+AE10","v":33}]
[null,null,null,null,null,null,null,null,null,null,null,null,null,null,null,null,null,null,null,null,null,null,null,null,null,null,null,{"$f":"ROUND(RAND()*(3-2)+2,0)","v":2},"x","+",{"$f":"ROUND(RAND()*(25-5)+5,0)","v":7},null,null,null,null,"x","+",{"$f":"AY9-AV9","v":20},null,null,null,null,null,null,null,"y","=",{"$f":"180-AV9-AL10","v":147}]
[]
[]
[]
[]
[null,null,null,null,null,null,null,null,null,null,null,null,null,null,null,null,null,null,null,null,null,null,"Q2."]
[null,null,null,null,null,null,null,null,null,null,null,null,null,null,null,null,null,null,null,null,null,null,null,null,null,null,null,null,null,null,"x","+",{"$f":"AY18-AV18","v":25},null,null,null,null,null,null,"x="]
[null,null,null,null,null,null,null,null,null,null,null,null,null,null,null,null,null,null,null,null,null,null,null,null,null,null,null,null,null,null,null,null,null,null,null,null,null,null,null,"y="]
[null,null,null,null,null,null,null,null,null,null,null,null,null,null,null,null,null,null,null,null,null,null,null,null,null,null,null,null,null,null,null,null,null,null,null,null,null,null,null,null,null,null,null,null,null,"x","=",{"$f":"ROUND(RAND()*(20-5)+5,0)","v":8},null,null,{"$f":"AB19*AV18+AE19","v":33}]
[null,null,null,null,null,null,null,null,null,null,null,null,null,null,null,null,null,null,null,null,null,null,null,null,null,null,null,{"$f":"ROUND(RAND()*(3-2)+2,0)","v":3},"x","+",{"$f":"ROUND(RAND()*(22-5)+5,0)","v":9},null,null,"y",null,null,null,null,null,null,null,null,null,null,null,"y","=",{"$f":"180-AV18-AG16","v":147}]
[]
[]
[]
[]
[null,null,null,null,null,null,null,null,null,null,null,null,null,null,null,null,null,null,null,null,null,null,"Q3."]
[null,null,null,null,null,null,null,null,null,null,null,null,null,null,null,null,null,null,null,null,null,null,null,null,null,null,null,null,null,null,"x","+",{"$f":"AY27-AV27","v":73},null,null,null,null,null,null,"x="]
[null,null,null,null,null,null,null,null,null,null,null,null,null,null,null,null,null,null,null,null,null,null,null,null,null,null,null,null,null,null,null,null,null,null,null,null,null,null,null,"y="]
[null,null,null,null,null,null,null,null,null,null,null,null,null,null,null,null,null,null,null,null,null,null,null,null,null,null,null,null,"y",null,null,null,null,null,null,null,null,null,null,null,null,null,null,null,null,"x","=",{"$f":"ROUND(RAND()*(50-40)+40,0)","v":50},null,null,{"$f":"AB28*AV27+AE28","v":123}]
[null,null,null,null,null,null,null,null,null,null,null,null,null,null,null,null,null,null,null,null,null,null,null,null,null,null,null,{"$f":"ROUND(RAND()*(3-2)+2,0)","v":2},"x","+",{"$f":"ROUND(RAND()*(30-15)+15,0)","v":23},null,null,null,null,null,null,null,null,null,null,null,null,null,null,"y","=",{"$f":"180-AV27-AG25","v":57}]